Cogmind - Beta 17 @@@ ROGUE MODE // 2026.08.01 @ 23:37:38 // Winter2019/RPGLIKE Player: obl-vn Result: Destroyed by G-73 Enforcer with Phase Gun Performance ------------- Evolutions (7) 3500 Regions Visited (25) 5000 Robots Destroyed (317) 1585 Value Destroyed (13945) 13945 Prototype IDs (70) 1400 Alien Tech Used (0) 0 Bonus (28272) 28272 TOTAL SCORE: 53702 Bonus ------- Triggered Max Security 1000 High Alert Combat Kills 1374 Follower Combat Kills 1354 Prayed to X0-1V1 5000 Major X0-1V1 Interference 7700 Subatomizer Sterilization 3000 Entered DSFs 500 Network Hubs Disabled 200 Aligned with FarCom 300 Met Data Miner 300 Met Zhirov 300 Met Warlord at Base 500 MAIN.C Attacked Warlord 500 Warlord Defense Kills 3850 Met R17 at Cetus 500 Met R17 at Research 2000 Scanned by Researcher 500 Friendly Fire -606 Cogmind --------- Core Integrity 0/1900 Matter 181/1000 Energy 210/2205 System Corruption 0% Temperature Warning (326) Movement Immobile (Siege) Location -3/Testing Parts ------- > --- POWER (4) -------- Neutrino Core Neutrino Core Graviton Reactor Quantum Reactor > --- PROPULSION (4) --- Centrium Heavy Treads (fused) Centrium Heavy Treads > --- UTILITY (11) ----- Advanced Heat Sink Experimental Heat Sink Multitargeting Array Advanced Weapon Cycler Experimental Phase Shifter Graphene Brace Experimental EM Shield X0-1V1's Piety Tracker > --- WEAPON (5) ------- Advanced Variable Charge Gun Long-range Phase Cannon Long-range Phase Cannon Long-range Phase Cannon Thermoblaster > --- INVENTORY (2) ---- Advanced Variable Charge Gun Advanced Variable Charge Gun Peak State ------------ > --- POWER ------------ Neutrino Core Neutrino Core Graviton Reactor Quantum Reactor > --- PROPULSION ------- Centrium Heavy Treads Centrium Heavy Treads > --- UTILITY ---------- Experimental Thermal Generator Experimental Cryofiber Web Advanced Heat Sink Experimental Heat Sink Multitargeting Array Advanced Particle Charger Advanced Weapon Cycler Experimental Phase Shifter Experimental EM Shield Improved Force Field X0-1V1's Piety Tracker > --- WEAPON ----------- Advanced Variable Charge Gun Advanced Variable Charge Gun Advanced Variable Charge Gun EMDS > --- INVENTORY -------- Quantum Rifle Thermoblaster [Rating: 205] Favorites ----------- Power Neutrino Core Engine Cooled Ion Engine Power Core Neutrino Core Reactor Quantum Reactor Propulsion Improved Treads Treads Improved Treads Leg Myomer Leg Wheel Armored Wheel Utility X0-1V1's Piety Tracker Device X0-1V1's Piety Tracker Processor Makeshift Salvage Targeting Computer Protection Light Armor Plating Weapon Pulse Rifle Energy Gun Pulse Rifle Energy Cannon EMDS Ballistic Cannon Light Cannon Launcher Thermoblaster Special Weapon Improved Plasma Cutter Build | -11 -10 -10 -9 -9 -9 -8 -8 -7 -7 -7 -7 -6 -6 -6 -5 -5 -5 -5 -5 -4 -4 -4 -3 -3 -3 ------- Run | Yrd Mat Min Mat Min Exi Min Mat Fac Low Low Dat Pro Fac DSF Fac Ext Cet Arc Hub Fac Upp War Pro Res Tes Slots Evolved 20 | 2 1 . 3 . . . 2 2 . . . 2 . 1 2 2 1 . . 1 . . . 1 . Power 3 | . . . . . . . . . . . . . . 1 1 . . . . 1 . . . . . Propulsion 3 | 1 . . 1 . . . . . . . . . . . . 1 . . . . . . . . . Utility 10 | . 1 . 1 . . . 2 . . . . 2 . . 1 1 1 . . . . . . 1 . Weapon 4 | 1 . . 1 . . . . 2 . . . . . . . . . . . . . . . . . Parts Attached 108 | 6 11 1 17 . 1 2 12 6 . 1 . 2 1 2 4 14 8 . 6 6 . 2 1 2 3 Power 14 | 1 . 1 3 . . . . 1 . 1 . . . 1 1 2 1 . . 2 . . . . . Engine 7 | 1 . 1 3 . . . . . . . . . . 1 . . . . . 1 . . . . . Core 5 | . . . . . . . . 1 . 1 . . . . 1 2 . . . . . . . . . Reactor 2 | . . . . . . . . . . . . . . . . . 1 . . 1 . . . . . Propulsion 18 | 2 1 . 2 . . 1 . 2 . . . . . . 2 6 2 . . . . . . . . Treads 12 | 2 1 . 1 . . 1 . 2 . . . . . . 1 2 2 . . . . . . . . Leg 5 | . . . . . . . . . . . . . . . 1 4 . . . . . . . . . Wheel 1 | . . . 1 . . . . . . . . . . . . . . . . . . . . . . Hover . | . . . . . . . . . . . . . . . . . . . . . . . . . . Flight . | . . . . . . . . . . . . . . . . . . . . . . . . . . Utility 42 | 1 3 . 7 . 1 . 10 . . . . 2 1 1 1 2 2 . 4 4 . 1 . 2 . Device 29 | 1 2 . 1 . 1 . 7 . . . . 2 1 1 1 1 . . 4 4 . 1 . 2 . Storage . | . . . . . . . . . . . . . . . . . . . . . . . . . . Processor 3 | . . . 1 . . . 1 . . . . . . . . 1 . . . . . . . . . Hackware . | . . . . . . . . . . . . . . . . . . . . . . . . . . Protection 10 | . 1 . 5 . . . 2 . . . . . . . . . 2 . . . . . . . . Artifact . | . . . . . . . . . . . . . . . . . . . . . . . . . . Weapon 34 | 2 7 . 5 . . 1 2 3 . . . . . . . 4 3 . 2 . . 1 1 . 3 Energy Gun 22 | 2 4 . 4 . . . 1 3 . . . . . . . 4 3 . . . . . 1 . . Energy Cannon 5 | . . . . . . 1 . . . . . . . . . . . . 1 . . . . . 3 Ballistic Gun . | . . . . . . . . . . . . . . . . . . . . . . . . . . Ballistic Cannon 2 | . 2 . . . . . . . . . . . . . . . . . . . . . . . . Launcher 4 | . 1 . 1 . . . 1 . . . . . . . . . . . . . . 1 . . . Special Weapon 1 | . . . . . . . . . . . . . . . . . . . 1 . . . . . . Impact Weapon . | . . . . . . . . . . . . . . . . . . . . . . . . . . Slashing Weapon . | . . . . . . . . . . . . . . . . . . . . . . . . . . Piercing Weapon . | . . . . . . . . . . . . . . . . . . . . . . . . . . Special Melee Weapon . | . . . . . . . . . . . . . . . . . . . . . . . . . . Unidentified Prototypes 16 | . 1 . 3 . . . 4 . . . . . . . . . 3 . 4 . . . . 1 . Corrupted Parts 1 | . . . . . . . . . . . . . . . . . . . . . . . 1 . . System Corruption 9 | . . . . . . . . . . . . . . . . . . . . . . . 9 . . Parts Lost 4 | . . . 1 . . . 1 . . . . . . 1 . . . . 1 . . . . . . Power 2 | . . . 1 . . . 1 . . . . . . . . . . . . . . . . . . Propulsion . | . . . . . . . . . . . . . . . . . . . . . . . . . . Utility 2 | . . . . . . . . . . . . . . 1 . . . . 1 . . . . . . Weapon . | . . . . . . . . . . . . . . . . . . . . . . . . . . Highest Loss Streak 1 | . . . 1 . . . 1 . . . . . . 1 . . . . 1 . . . . . . To Critical Strikes . | . . . . . . . . . . . . . . . . . . . . . . . . . . Average Backups 1 | . . 1 1 1 . 1 1 2 2 2 2 1 2 2 2 1 1 2 2 2 2 1 1 2 1 Power . | . . . . . . . . . . . . . . . . . . . . . . . . . . Propulsion . | . . . . . . . . . . . . . . . . . . . . . . . . . . Utility . | . . . . . . . . . . 1 1 . 1 1 1 . . . . 2 2 1 . . . Weapon 1 | . . 1 1 1 . 1 1 2 1 1 1 1 1 1 1 . . 1 . . . . 1 2 1 Tool/Special . | . . . . . . . . . . . . . . . . . . . . . . . . . . Unused Backups 18 | . . . . . . 1 5 1 . . . . . . . 6 1 . . 1 . 2 1 . . Power . | . . . . . . . . . . . . . . . . . . . . . . . . . . Propulsion 4 | . . . . . . . . . . . . . . . . 3 1 . . . . . . . . Utility 5 | . . . . . . . . 1 . . . . . . . 2 . . . . . 2 . . . Weapon 8 | . . . . . . 1 5 . . . . . . . . 1 . . . . . . 1 . . Tool/Special 1 | . . . . . . . . . . . . . . . . . . . . 1 . . . . . Average Slot Usage (%) 96 | . 100 100 99 100 100 100 100 99 100 100 100 97 93 92 97 99 91 90 88 85 86 85 86 86 89 Engine 5 | . 15 14 11 10 10 10 8 4 . . . . . 2 4 1 . . . 1 . . . . . Core 4 | . . . . . . . . 2 7 7 7 6 6 5 7 12 9 9 9 8 8 8 8 8 8 Reactor 1 | . . . . . . . . . . . . . . . . . 3 4 4 5 8 8 8 8 7 Treads 17 | . 32 28 23 20 20 20 16 21 21 21 21 16 12 11 11 8 7 9 9 8 8 8 8 8 8 Wheel 1 | . . . . 10 10 10 8 . . . . . . . . . . . . . . . . . . Device 30 | . 9 14 12 20 20 20 26 36 35 35 35 40 43 40 41 38 37 36 35 38 42 43 43 44 44 Processor 1 | . . . 2 . . . 5 . . . . . . . . 3 4 4 4 . . . . . . Protection 4 | . 7 14 20 10 10 10 7 . . . . . . . . . 1 4 3 4 . . . . . Energy Gun 23 | . 13 28 27 25 30 29 24 32 34 35 35 32 31 29 27 23 22 22 20 13 13 13 13 12 5 Ballistic Cannon 1 | . 19 . . . . . . . . . . . . . . . . . . . . . . . . Peak Build Rating 205 | 6 21 22 37 37 41 44 68 83 80 80 80 88 86 91 106 140 165 165 172 195 195 196 196 205 203 Average Rating 89 | 4 7 21 27 36 37 38 48 76 79 79 80 84 85 85 97 126 155 165 164 189 191 191 195 202 196 On Entrance 98 | . 6 21 22 37 37 37 39 68 80 79 80 80 84 86 91 103 140 165 165 172 195 191 195 196 203 Avg Prop Armor Cover (%) 14 | . . . 15 14 15 15 15 18 . . . . . . 3 5 7 . . . . . . . . Naked Turns . | . . . . . . . . . . . . . . . . . . . . . . . . . . Heaviest Build 137 | 8 15 17 26 23 22 29 37 45 43 47 47 51 52 65 83 91 104 102 105 130 131 131 125 126 137 Greatest Support 160 | 40 40 40 43 43 12 45 45 73 73 73 73 73 45 45 68 98 160 160 160 160 160 160 160 160 160 Greatest Overweight (x) 3 | . . . 1 1 1 2 3 3 . . . 1 1 1 1 1 1 . . . . . . . . Average Overweight (x) . | . . . . . 1 1 1 . . . . . 1 1 1 . . . . . . . . . . Largest Inventory Capacity 2 | . 1 1 1 1 1 1 2 2 2 2 2 2 2 2 2 2 2 2 2 2 2 2 2 2 2 Average Capacity 1 | . . 1 1 1 1 1 1 2 2 2 2 2 2 2 2 2 2 2 2 2 2 2 2 2 2 Most Carried 2 | . 1 1 1 1 1 1 2 2 2 2 2 2 2 2 2 2 2 2 2 2 2 2 2 2 2 Average Carried 1 | . . 1 . 1 . . 1 1 1 2 2 1 2 2 2 1 1 2 1 2 2 1 1 2 1 Final Capacity 2 | . 1 1 1 1 1 1 2 2 2 2 2 2 2 2 2 2 2 2 2 2 2 2 2 2 2 Final Carried 2 | . 1 1 1 1 1 1 2 2 2 2 2 2 2 2 2 2 2 2 2 2 2 1 2 2 2 Class Distribution -------------------- 32% | Scavenger-Gunner 21% | Scavenger-Tank 19% | Mutant 13% | Hacker-Gunner 6% | Commander-Gunner Dominant Class ---------------- Mutant | -10/Materials Mutant | -10/Mines Mutant | -9/Materials Hacker-Gunner | -9/Mines Hacker-Gunner | -9/Exiles Hacker-Gunner | -8/Mines Hacker-Gunner | -8/Materials Scavenger-Gunner | -7/Factory Scavenger-Gunner | -7/Lower Caves Scavenger-Gunner | -7/Lower Caves Scavenger-Gunner | -7/Data Miner Scavenger-Gunner | -6/Proximity Caves Scavenger-Gunner | -6/Factory Scavenger-Gunner | -6/DSF Scavenger-Gunner | -5/Factory Commander-Gunner | -5/Extension Commander-Gunner | -5/Cetus Commander-Tank | -5/Archives Scavenger-Tank | -5/Hub_04(d) Scavenger-Tank | -4/Factory Scavenger-Tank | -4/Upper Caves Scavenger-Tank | -4/Warlord Scavenger-Tank | -3/Proximity Caves Scavenger-Tank | -3/Research Scavenger-Tank | -3/Testing Resources | -11 -10 -10 -9 -9 -9 -8 -8 -7 -7 -7 -7 -6 -6 -6 -5 -5 -5 -5 -5 -4 -4 -4 -3 -3 -3 ----------- Run | Yrd Mat Min Mat Min Exi Min Mat Fac Low Low Dat Pro Fac DSF Fac Ext Cet Arc Hub Fac Upp War Pro Res Tes Matter Collected 6232 | 260 380 421 146 371 . 136 964 151 230 10 . 191 . 15 780 130 100 . 155 740 . 445 380 216 11 Remotely 266 | . 266 . . . . . . . . . . . . . . . . . . . . . . . . Salvage Created 12840 | 83 406 266 970 261 . 165 404 328 367 467 . 313 . 253 729 1575 . . 859 965 . 1508 936 1018 967 Parts 590 | 2 36 39 67 18 . 21 29 22 18 17 . 7 . 10 16 59 5 . 40 40 . 31 39 44 30 Haulers Intercepted 7 | . 2 . 4 . . . . . . . . . . . . . . . . 1 . . . . . Recyclers Shooed 8 | . 2 . 1 1 . . . 2 . . . . . . . . . . . 1 . . . 1 . Parts Field Recycled . | . . . . . . . . . . . . . . . . . . . . . . . . . . Retrieved Matter . | . . . . . . . . . . . . . . . . . . . . . . . . . . Parts Self-Destructed 53 | . . . . . . . . . 18 20 . 7 . . . . . . . . . . 8 . . Prevented 33 | . . . . . . . . . . 1 . . . . . . . . . . . . 32 . . Parts Restored . | . . . . . . . . . . . . . . . . . . . . . . . . . . Kills | -11 -10 -10 -9 -9 -9 -8 -8 -7 -7 -7 -7 -6 -6 -6 -5 -5 -5 -5 -5 -4 -4 -4 -3 -3 -3 ------- Run | Yrd Mat Min Mat Min Exi Min Mat Fac Low Low Dat Pro Fac DSF Fac Ext Cet Arc Hub Fac Upp War Pro Res Tes Combat Hostiles Destroyed 273 | . 14 9 20 18 . 9 17 9 13 8 . 5 . 6 12 24 2 . 12 16 . 29 18 14 18 Guns 150 | . 3 9 20 7 . 5 5 6 8 8 . 4 . 5 10 18 1 . 12 . . 8 5 11 5 Cannons 43 | . 5 . . . . 4 2 2 . . . . . . . . . . . 4 . 7 11 1 7 AOE 50 | . 6 . . 11 . . 9 . 4 . . . . . . . . . . 7 . 7 . . 6 Classes Destroyed 24 | 2 7 2 1 2 . . 1 2 1 1 . 1 . 1 . . . . 1 . . 1 . . 1 Worker 7 | . . 1 . . . . 1 2 . . . . . . . . . . . 2 . . . 1 . Builder 4 | . 1 1 . . . 1 1 . . . . . . . . . . . . . . . . . . Tunneler 4 | 1 . 1 . 1 . 1 . . . . . . . . . . . . . . . . . . . Hauler 7 | . 2 . 4 . . . . . . . . . . . . . . . . 1 . . . . . Recycler 7 | 1 1 . . 1 . . 1 . . . . . . . 1 1 . . . 1 . . . . . Minesweeper 1 | . . . . . . . . . . . . 1 . . . . . . . . . . . . . Mechanic 3 | . 1 . . . . . 1 . . . . . . . . . . . . . . . . . 1 Operator 7 | . 2 . 1 . . . . 1 . . . . . . . 1 . . . 1 . . . 1 . Watcher 14 | . 3 . 7 . . . . . . . . . . . . 1 . . 1 2 . . . . . Swarmer 68 | . 12 3 7 . . 4 8 . 7 . . 1 . . . 4 . . 4 4 . 5 4 5 . Saboteur 4 | . . . . . . . . . . . . . . . . . . . . . . . . . 4 Grunt 100 | . 2 3 4 4 . 2 7 . 4 4 . 2 . 3 9 8 . . 1 10 . 13 7 7 10 Brawler 11 | . . . 1 . . 3 . . . 1 . . . . . . . . . . . 5 1 . . Duelist 6 | . . . . . . . . . . 2 . . . . . . . . . . . 2 1 . 1 Protector 2 | . . . . . . . . . . . . . . . . . . . 1 . . . . . 1 Sentry 35 | . . 4 8 1 . . 1 5 . 1 . 1 . . 2 10 . . . . . . 1 1 . Demolisher 1 | . . . . 1 . . . . . . . . . . . . . . . . . . . . . Specialist 4 | . . . . . . . . . . . . . . 2 . . . . . . . 2 . . . Hunter 10 | . . . . . . . . 2 1 . . . . . 1 . . . . . . . 4 . 2 Programmer 8 | . . . . . . . . 2 . . . . . . . . . . 3 2 . . . 1 . Heavy 2 | . . . . . . . 1 . . . . . . 1 . . . . . . . . . . . Behemoth 3 | . . . . . . . . . 1 . . 1 . . . 1 . . . . . . . . . Cetus Guard 2 | . . . . . . . . . . . . . . . . . 2 . . . . . . . . Lightning 3 | . . . . . . . . . . . . . . . . . . . 3 . . . . . . Executioner 2 | . . . . . . . . . . . . . . . . . . . . . . 2 . . . Assembled 12 | . . . . 12 . . . . . . . . . . . . . . . . . . . . . Thug 1 | . . . . 1 . . . . . . . . . . . . . . . . . . . . . Guerrilla 1 | . . . . . . . . . . . . . . . . 1 . . . . . . . . . Best Kill Streak 19 | 2 4 2 6 11 . 4 14 2 4 7 . 3 . 3 7 6 1 . 5 11 . 10 7 5 19 Combat Bots Only 18 | . 3 2 6 9 . 4 13 2 4 7 . 3 . 3 7 6 1 . 4 6 . 10 7 5 18 Max Kills in Single Turn 6 | 1 3 1 2 4 . 1 6 1 3 2 . 1 . 1 2 2 1 . 2 4 . 3 1 2 3 Gunslinging 2 | . . . 1 . . . 1 . . 1 . . . . 1 1 . . 1 . . 2 . 1 . Exploded 5 | . 3 . . 4 . . 5 . 3 . . . . . . . . . . 3 . 2 . . 2 Melee . | . . . . . . . . . . . . . . . . . . . . . . . . . . Uniques/NPCs Destroyed 1 | . . . . . . . 1 . . . . . . . . . . . . . . . . . . 7R-MNS (-8/Materials) Combat | -11 -10 -10 -9 -9 -9 -8 -8 -7 -7 -7 -7 -6 -6 -6 -5 -5 -5 -5 -5 -4 -4 -4 -3 -3 -3 -------- Run | Yrd Mat Min Mat Min Exi Min Mat Fac Low Low Dat Pro Fac DSF Fac Ext Cet Arc Hub Fac Upp War Pro Res Tes Hostile Shots Fired 968 | . 41 49 61 28 . 6 111 27 33 9 . 29 . 16 21 38 6 . 45 10 . 88 32 26 292 Missed 344 | . 12 13 24 6 . 2 17 12 6 1 . 15 . 5 7 11 3 . 8 2 . 43 15 15 127 Hits 624 | . 29 36 37 22 . 4 94 15 27 8 . 14 . 11 14 27 3 . 37 8 . 45 17 11 165 Melee 18 | . . . . 1 . 2 . . . 1 . . . . . . . . . . . 1 . . 13 Projectile 606 | . 29 36 37 21 . 2 94 15 27 7 . 14 . 11 14 27 3 . 37 8 . 44 17 11 152 AOE 7 | . . . . 7 . . . . . . . . . . . . . . . . . . . . . Critical Strikes 33 | . . 3 3 2 . . 5 . 2 . . 1 . . . . 1 . 5 . . . 2 1 8 Actively Blocked 9 | . . . . . . . . . . . . . . . . . . . . . . . . 1 8 Damage Taken 9129 | . 332 470 407 669 . 67 1374 47 254 162 . 129 . 125 142 339 63 372 1090 132 . 299 130 114 2412 Core 7018 | . 264 339 292 503 . 47 1030 34 208 130 . 110 . 95 112 265 53 292 835 99 . 218 99 86 1907 Absorbed by Shields 2365 | . . . . . . . 328 72 162 48 . 80 . 30 82 123 24 128 352 139 . 303 133 120 241 Reduced by Siege Mode 25 | . . . . . . . . . . . . . . . . . . . . . . 8 . . 17 Redirected to Core 6053 | . 189 299 250 406 . 47 833 34 148 112 . 61 . 94 104 250 36 292 711 94 . 214 91 77 1711 Ignored by Resistances 2591 | . 12 78 105 44 . 6 442 34 115 47 . 59 . 74 60 127 24 . 10 101 . 409 74 77 693 Core Remaining (%) 78 | 100 . 100 . . . 100 15 . . . . 86 . 98 . . . . 28 . . . 100 . . Volleys Fired 722 | 4 51 34 73 25 . 25 86 24 15 10 . 13 . 11 39 33 5 . 28 50 . 57 38 46 55 Largest 5 | 2 2 2 3 3 . 3 3 5 5 5 . 5 . 5 5 5 5 . 5 3 . 4 4 4 5 Hottest 720 | 80 90 90 189 189 . 189 189 374 374 374 . 374 . 374 374 419 419 . 720 240 . 500 310 310 655 Shots Fired 1622 | 8 99 69 163 48 . 49 113 70 52 48 . 50 . 46 95 159 21 . 88 62 1 94 78 87 122 Gun 1240 | 8 46 69 161 37 . 37 46 61 49 48 . 50 . 46 95 159 21 . 88 37 1 43 41 68 29 Cannon 343 | . 50 . . . . 12 65 7 . . . . . . . . . . . 25 . 42 37 19 86 Launcher 39 | . 3 . 2 11 . . 2 2 3 . . . . . . . . . . . . 9 . . 7 Special . | . . . . . . . . . . . . . . . . . . . . . . . . . . Kinetic 50 | . 50 . . . . . . . . . . . . . . . . . . . . . . . . Thermal 1239 | 8 36 . 53 37 . 49 111 68 49 48 . 50 . 46 95 159 21 . 88 37 1 52 41 68 122 Explosive 23 | . 3 . 2 11 . . 2 2 3 . . . . . . . . . . . . . . . . Electromagnetic 310 | . 10 69 108 . . . . . . . . . . . . . . . . 25 . 42 37 19 . Robot Hit Streak 75 | 2 7 11 18 9 . 10 21 42 34 22 . 57 . 74 75 43 15 . 27 13 2 24 18 20 26 Robot Miss Streak 5 | 1 5 3 2 2 . 2 1 1 1 2 . 1 . 1 1 1 1 . 2 3 . 5 3 5 2 Penetration Max 1 | . . . . . . . . . . . . . . . . . . . . 1 . 1 1 . . Secondary Targets 26 | . . . 2 . . 1 2 . 1 2 . . . 1 4 3 1 . 4 . . 4 . 1 . Max Gunslinging Chain 2 | . . . 1 . . 1 1 . 1 1 . . . 1 1 1 1 . 1 . . 2 . 1 . Shots Hit Robots 996 | 6 47 44 97 25 . 25 56 38 43 33 . 38 . 41 59 133 18 . 47 31 1 68 53 44 49 Core Hits 575 | 3 26 19 42 34 . 14 35 23 31 23 . 18 . 19 37 58 6 . 23 18 . 44 25 20 57 Critical Kills . | . . . . . . . . . . . . . . . . . . . . . . . . . . Critical Parts Destroyed 1 | . . . . . . . . . . . . . . . . 1 . . . . . . . . . Critical Strikes 42 | . . 3 4 . . 3 1 . . 2 . 2 . . . 9 1 . 1 3 . 7 4 2 . Burn 19 | . . . 1 . . 3 1 . . 2 . 2 . . . 8 1 . 1 . . . . . . Destroy 1 | . . . . . . . . . . . . . . . . 1 . . . . . . . . . Corrupt 22 | . . 3 3 . . . . . . . . . . . . . . . . 3 . 7 4 2 . Melee Attacks . | . . . . . . . . . . . . . . . . . . . . . . . . . . Impact . | . . . . . . . . . . . . . . . . . . . . . . . . . . Slashing . | . . . . . . . . . . . . . . . . . . . . . . . . . . Piercing . | . . . . . . . . . . . . . . . . . . . . . . . . . . Sneak Attacks . | . . . . . . . . . . . . . . . . . . . . . . . . . . Combat Hostiles . | . . . . . . . . . . . . . . . . . . . . . . . . . . Follow-up Attacks . | . . . . . . . . . . . . . . . . . . . . . . . . . . Damage Inflicted 43235 | 66 963 694 1612 1361 . 669 3001 1271 1508 933 . 1228 . 1278 1954 4747 625 . 2295 3582 . 4996 2798 2015 5639 Guns 25595 | 66 237 651 1576 378 . 520 704 1112 1162 933 . 1228 . 1278 1954 4737 625 . 2287 556 . 1768 1301 1500 1022 Cannons 9889 | . 467 . . . . 149 1452 138 . . . . . . . . . . . 1396 . 1825 1497 453 2512 Explosions 7653 | . 259 39 32 983 . . 845 11 346 . . . . . . . . . . 1630 . 1403 . . 2105 Melee . | . . . . . . . . . . . . . . . . . . . . . . . . . . Ramming 98 | . . 4 4 . . . . 10 . . . . . . . 10 . . 8 . . . . 62 . Kinetic 467 | . 467 . . . . . . . . . . . . . . . . . . . . . . . . Thermal 32577 | 66 177 39 500 378 . 669 2156 1256 1162 933 . 1228 . 1278 1954 4737 625 . 2287 1521 . 3171 1301 1500 5639 Explosive 3135 | . 259 . 32 983 . . 845 5 346 . . . . . . . . . . 665 . . . . . Electromagnetic 6958 | . 60 651 1076 . . . . . . . . . . . . . . . . 1396 . 1825 1497 453 . Impact . | . . . . . . . . . . . . . . . . . . . . . . . . . . Slashing . | . . . . . . . . . . . . . . . . . . . . . . . . . . Piercing . | . . . . . . . . . . . . . . . . . . . . . . . . . . Highest Corruption 15 | . . 6 3 . . . . 2 2 . . 15 . . . . . . 10 12 12 12 15 . . Average Corruption 4 | . . 6 3 . . . . 2 2 . . 15 . . . . . . 9 12 12 4 2 . . Corruption Purged . | . . . . . . . . . . . . . . . . . . . . . . . . . . Corruption Blocked . | . . . . . . . . . . . . . . . . . . . . . . . . . . Effects 94 | . . 14 20 . . . . 12 4 . . 14 . . . . . . 8 2 5 4 11 . . Message Errors 20 | . . 2 4 . . . . 3 . . . 2 . . . . . . 4 1 . 1 3 . . Matter Fused 17 | . . 2 5 . . . . 3 1 . . 3 . . . . . . 2 . 1 . . . . Heat Flow Errors 14 | . . 1 3 . . . . 2 1 . . 4 . . . . . . 2 . 1 . . . . Energy Discharges 12 | . . 3 2 . . . . 3 1 . . 2 . . . . . . . . . 1 . . . Parts Rejected 1 | . . . 1 . . . . . . . . . . . . . . . . . . . . . . Parts Fused 2 | . . . . . . . . . 1 . . . . . . . . . . . . . 1 . . Data Loss (minor) 8 | . . . . . . . . 1 . . . 2 . . . . . . . . 1 1 3 . . Data Loss (major) 5 | . . 2 1 . . . . . . . . 1 . . . . . . . . . 1 . . . Misfires 8 | . . 1 2 . . . . . . . . . . . . . . . . 1 1 . 3 . . Alerts 5 | . . 3 1 . . . . . . . . . . . . . . . . . 1 . . . . Weapon Failures 2 | . . . 1 . . . . . . . . . . . . . . . . . . . 1 . . Overload Shots 7 | . . . . . . . . . . . . . . . . . . . 5 . . . . . 2 Effects 1 | . . . . . . . . . . . . . . . . . . . 1 . . . . . . Heat Surge 1 | . . . . . . . . . . . . . . . . . . . 1 . . . . . . Overflow Damage 683 | . 10 . . 1 . . 71 . 51 . . . . . . 2 . . . 385 . 59 19 31 54 Projectiles 191 | . . . . . . . 14 . . . . . . . . . . . . 98 . 29 19 20 11 Explosions 479 | . 10 . . 1 . . 57 . 51 . . . . . . . . . . 287 . 30 . . 43 Melee 13 | . . . . . . . . . . . . . . . . 2 . . . . . . . 11 . Knockbacks 6 | . 4 . . . . . . . . . . . . . . . . . . . . . . 2 . Impact 2 | . . . . . . . . . . . . . . . . . . . . . . . . 2 . Kinetic 4 | . 4 . . . . . . . . . . . . . . . . . . . . . . . . Secondary . | . . . . . . . . . . . . . . . . . . . . . . . . . . Self-Inflicted Damage 364 | . 20 38 55 31 . . 66 . . . . . . . . . . . . 154 . . . . . Shots 9 | . 1 1 2 1 . . 2 . . . . . . . . . . . . 2 . . . . . Rammed 8 | . . 2 1 . . . 1 1 . . . . . . . 1 . . 1 . . . . 1 . Targets Rammed 10 | . . 2 1 . . . 1 2 . . . . . . . 1 . . 1 . . . . 2 . Kicked . | . . . . . . . . . . . . . . . . . . . . . . . . . . Crushed 2 | . . . . . . . . 1 . . . . . . . . . . . . . . . 1 . Highest Temperature 982 | 54 120 214 187 176 . 290 450 80 276 455 . . . 6 347 321 51 . 982 . . 542 . . 590 Average Temperature 109 | 25 35 40 35 55 . 91 158 52 119 242 . . . 6 171 114 51 . 359 . . 219 . . 244 Received Heat Transfer 1968 | . 90 234 162 47 . 18 617 9 66 15 . 42 . 17 51 78 . . 6 6 . 10 39 20 441 Effects 18 | . . . . . . . 9 . 3 . . . . . . . . . 4 . . 1 . . 1 Energy Bleed 2 | . . . . . . . 1 . . . . . . . . . . . 1 . . . . . . Interference 11 | . . . . . . . 5 . 3 . . . . . . . . . 3 . . . . . . Matter Decay 1 | . . . . . . . 1 . . . . . . . . . . . . . . . . . . Short Circuit 2 | . . . . . . . . . . . . . . . . . . . . . . 1 . . 1 Damage (minor) 2 | . . . . . . . 2 . . . . . . . . . . . . . . . . . . Siege Activations 2 | . . . . . . . . . . . . . . . . . . . . . . 1 . . 1 Total Turns 93 | . . . . . . . . . . . . . . . . . . . . . . 36 . . 57 Longest Duration 57 | . . . . . . . . . . . . . . . . . . . . . . 36 . . 57 Martial Activations . | . . . . . . . . . . . . . . . . . . . . . . . . . . Shielding Activations . | . . . . . . . . . . . . . . . . . . . . . . . . . . Robots Disrupted . | . . . . . . . . . . . . . . . . . . . . . . . . . . Combat Hostiles . | . . . . . . . . . . . . . . . . . . . . . . . . . . Robots Corrupted 18 | . . 1 1 . . . . . . . . . . . . 1 . . . 6 . 5 2 2 . Combat Hostiles 14 | . . . . . . . . . . . . . . . . . . . . 5 . 5 2 2 . Parts Fried 56 | . 1 4 7 . . . . . . . . . . . . 1 . . . 15 . 9 13 6 . Impact Corruptions 2 | . . . . . . . . . . . . . . . . 1 . . . . . . . 1 . Robots Melted 15 | . . . . . . . . 1 1 . . 1 . 1 2 6 1 . . . . 2 . . . Combat Hostiles 15 | . . . . . . . . 1 1 . . 1 . 1 2 6 1 . . . . 2 . . . Parts Melted 103 | 1 . . 6 . . 2 5 7 2 4 . 5 . 6 7 31 2 . 9 . . 8 . 1 7 Heat Transferred 40750 | 150 400 50 1147 814 . 1578 3230 2179 2049 1777 . 2036 . 1936 2882 6374 740 . 1843 1018 . 3150 1184 1184 5029 Parts Sabotaged 7 | . . . . . . . . . . . . . . . . . . . . . . . . . 7 Parts Stolen . | . . . . . . . . . . . . . . . . . . . . . . . . . . Parts Stripped . | . . . . . . . . . . . . . . . . . . . . . . . . . . Power Chain Reactions 1 | . . 1 . . . . . . . . . . . . . . . . . . . . . . . Alert | -11 -10 -10 -9 -9 -9 -8 -8 -7 -7 -7 -7 -6 -6 -6 -5 -5 -5 -5 -5 -4 -4 -4 -3 -3 -3 ------- Run | Yrd Mat Min Mat Min Exi Min Mat Fac Low Low Dat Pro Fac DSF Fac Ext Cet Arc Hub Fac Upp War Pro Res Tes Maximum Alert Level 5 | . . . 1 . . . 2 . . . . . . . 2 3 3 1 1 2 . . . 1 5 Low Security (%) 73 | 100 100 100 94 100 . 100 71 100 . . . . 100 100 42 5 . 3 91 60 . . . 42 . Level 1 14 | . . . 5 . . . 24 . . . . . . . 18 69 . 96 8 . . . . 57 . Level 2 8 | . . . . . . . 4 . . . . . . . 38 12 88 . . 38 . . . . . Level 3 1 | . . . . . . . . . . . . . . . . 11 11 . . . . . . . . Level 4 . | . . . . . . . . . . . . . . . . . . . . . . . . . . Level 5 . | . . . . . . . . . . . . . . . . . . . . . . . . . . High Security . | . . . . . . . . . . . . . . . . . . . . . . . . . . Max Security 2 | . . . . . . . . . . . . . . . . . . . . . . . . . 99 Sterilizations 1 | . . . . . . . 1 . . . . . . . . . . . . . . . . . . Peak Influence 2078 | 10 103 160 217 95 . 82 425 184 . . . . . 138 500 940 711 290 221 559 . . . 326 2078 Initial 515 | . . 23 51 15 . . 9 . . . . . . 2 72 226 515 253 66 88 . . . 149 156 Average 176 | . 26 64 109 36 . 29 120 38 . . . . . 90 249 396 644 247 96 260 . . . 211 1644 Influence Increases 9396 | 10 472 385 652 204 . 218 500 508 317 273 . 141 3 146 652 1232 356 57 351 809 . 761 440 431 478 Destroy 0b10 Robot/C 5640 | . 280 200 400 120 . 180 340 220 260 200 . 120 . 120 240 620 160 20 220 320 . 640 360 280 340 Destroy 0b10 Robot/NC 310 | 10 50 15 60 10 . 10 20 20 . . . 10 . 5 5 20 10 . 10 35 . . . 10 10 Destroy Leader 846 | . 70 20 104 10 . 20 70 92 40 20 . 10 . 20 50 52 . . 42 56 . . 50 60 60 Allied During Kill 781 | . . 1 . 6 . . . 37 2 23 . 1 . . . 475 170 20 . . . 46 . . . Successful Hack 57 | . 13 . 24 . . . 2 10 . . . . 3 . . . . . . 3 . . . 2 . Disable Machine 405 | . 15 . 30 . . . . 60 . . . . . . . . . 15 45 195 . . . 15 30 Destroy Structure 588 | . 14 7 19 58 . 8 38 69 . . . . . 1 30 50 16 2 34 170 . . . 34 38 Lose Combat Pursuer 405 | . 30 30 15 . . . 30 . 15 30 . . . . 75 15 . . . 30 . 75 30 30 . Miscellaneous 364 | . . 112 . . . . . . . . . . . . 252 . . . . . . . . . . Influence Decreases 8762 | 10 411 314 744 244 . 194 524 341 395 362 . 141 . 11 328 774 643 500 360 494 224 474 777 375 122 Entered New Map 2754 | . . 38 81 25 . . 15 . 63 17 . . . 1 66 236 405 380 124 93 184 272 559 73 122 Time Decay 5185 | 10 371 276 503 204 . 194 359 281 312 285 . 141 . . 262 538 198 40 160 329 40 162 218 302 . Lost Part 30 | . . . 10 . . . . . . . . . . 10 . . . . 10 . . . . . . Lost Ally 315 | . . . . 15 . . . 60 20 60 . . . . . . 40 80 . . . 40 . . . Purge Threat 478 | . 40 . 150 . . . 150 . . . . . . . . . . . 66 72 . . . . . Squads Dispatched 46 | . 2 . 2 1 . . 8 6 . 1 . . . 2 1 . . . 2 2 . . . 7 12 Investigation 10 | . . . 1 1 . . 2 2 . . . . . . 1 . . . . . . . . 3 . Extermination 8 | . . . . . . . . 4 . . . . . . . . . . 2 2 . . . . . Reinforcement 12 | . 2 . 1 . . . 3 . . . . . . 2 . . . . . . . . . 4 . Assault 15 | . . . . . . . 2 . . 1 . . . . . . . . . . . . . . 12 Garrison 1 | . . . . . . . 1 . . . . . . . . . . . . . . . . . . Intercept . | . . . . . . . . . . . . . . . . . . . . . . . . . . Searches Triggered . | . . . . . . . . . . . . . . . . . . . . . . . . . . Construction Impeded . | . . . . . . . . . . . . . . . . . . . . . . . . . . Haulers Reinforced 2 | . . . . . . . . . . . . . . . . . . . . . . . . 2 . Active Scanning Responses . | . . . . . . . . . . . . . . . . . . . . . . . . . . Cargo Convoy Interrupts 1 | . . . . . . . . 1 . . . . . . . . . . . . . . . . . Stealth | -11 -10 -10 -9 -9 -9 -8 -8 -7 -7 -7 -7 -6 -6 -6 -5 -5 -5 -5 -5 -4 -4 -4 -3 -3 -3 --------- Run | Yrd Mat Min Mat Min Exi Min Mat Fac Low Low Dat Pro Fac DSF Fac Ext Cet Arc Hub Fac Upp War Pro Res Tes Distress Signals 18 | . 3 . 4 . . . 1 . . . . . . . . 1 2 . . . . . . 7 . Communications Jammed . | . . . . . . . . . . . . . . . . . . . . . . . . . . Distress Signals . | . . . . . . . . . . . . . . . . . . . . . . . . . . Times Spotted 427 | . 24 14 46 20 . 5 22 12 11 10 . 6 . 10 16 34 8 . 15 17 . 64 14 14 65 Peak Tracking Total 40 | . 5 3 7 5 . 2 8 2 4 5 . 3 . 4 8 5 4 . 5 5 . 12 4 4 40 Tactical Retreats 22 | . 2 1 1 1 . . 2 . 1 1 . . . . 3 1 . . . 2 . 3 2 2 . Traps | -11 -10 -10 -9 -9 -9 -8 -8 -7 -7 -7 -7 -6 -6 -6 -5 -5 -5 -5 -5 -4 -4 -4 -3 -3 -3 ------- Run | Yrd Mat Min Mat Min Exi Min Mat Fac Low Low Dat Pro Fac DSF Fac Ext Cet Arc Hub Fac Upp War Pro Res Tes Traps Triggered 13 | . 2 . . . . . . 2 . . . . . . . 2 . . 3 3 . . . 1 . Indirectly . | . . . . . . . . . . . . . . . . . . . . . . . . . . Trap Hack Attempts . | . . . . . . . . . . . . . . . . . . . . . . . . . . Triggered . | . . . . . . . . . . . . . . . . . . . . . . . . . . Disarmed 4 | . . . . . . . . 4 . . . . . . . . . . . . . . . . . Reprogrammed . | . . . . . . . . . . . . . . . . . . . . . . . . . . Reused . | . . . . . . . . . . . . . . . . . . . . . . . . . . Traps Extracted . | . . . . . . . . . . . . . . . . . . . . . . . . . . Installed . | . . . . . . . . . . . . . . . . . . . . . . . . . . Triggered . | . . . . . . . . . . . . . . . . . . . . . . . . . . Most Traps Carried 1 | . . . . . . . . . . . . 1 . . . . . . . . . . . . . Machines | -11 -10 -10 -9 -9 -9 -8 -8 -7 -7 -7 -7 -6 -6 -6 -5 -5 -5 -5 -5 -4 -4 -4 -3 -3 -3 ---------- Run | Yrd Mat Min Mat Min Exi Min Mat Fac Low Low Dat Pro Fac DSF Fac Ext Cet Arc Hub Fac Upp War Pro Res Tes Machines Disabled 30 | . 1 . 2 . . . . 4 . 1 . . . . . . 1 1 3 13 . 1 . 1 2 Max in Single Turn 5 | . 1 . 1 . . . . 2 . 1 . . . . . . . . 1 5 . . . 1 1 Garrison Access 1 | . . . . . . . 1 . . . . . . . . . . . . . . . . . . Network Hub 1 | . . . . . . . . . . . . . . . . . . . 1 . . . . . . Machines Repaired . | . . . . . . . . . . . . . . . . . . . . . . . . . . Machines Dismantled 1 | . . . . . . . . . . . . . . . . . . . 1 . . . . . . Machines Sabotaged . | . . . . . . . . . . . . . . . . . . . . . . . . . . Overloaded Fab Kills . | . . . . . . . . . . . . . . . . . . . . . . . . . . Hacking | -11 -10 -10 -9 -9 -9 -8 -8 -7 -7 -7 -7 -6 -6 -6 -5 -5 -5 -5 -5 -4 -4 -4 -3 -3 -3 --------- Run | Yrd Mat Min Mat Min Exi Min Mat Fac Low Low Dat Pro Fac DSF Fac Ext Cet Arc Hub Fac Upp War Pro Res Tes Machines Accessed 40 | . 5 . 8 . 1 . 7 4 . . 2 1 1 . 3 . . . 3 1 . 1 . 3 . Terminals 30 | . 5 . 6 . . . 5 4 . . . 1 1 . 2 . . . 3 1 . . . 2 . Fabricators . | . . . . . . . . . . . . . . . . . . . . . . . . . . Repair Stations . | . . . . . . . . . . . . . . . . . . . . . . . . . . Recycling Units 1 | . . . . . . . 1 . . . . . . . . . . . . . . . . . . Scanalyzers 4 | . . . 2 . . . 1 . . . . . . . 1 . . . . . . . . . . Garrison Access 1 | . . . . . . . . . . . . . . . . . . . . . . . . 1 . Total Hacks 130 | . 15 . 27 . 1 . 13 10 . . 20 1 1 . 8 . . . 6 11 . 6 . 11 . Successful 91 | . 10 . 16 . 1 . 7 8 . . 20 1 1 . 5 . . . 3 6 . 6 . 7 . Failed 38 | . 5 . 11 . . . 5 2 . . . . . . 3 . . . 3 5 . . . 4 . Catastrophic 6 | . . . 1 . . . 1 1 . . . . . . 1 . . . . . . . . 2 . Database Lockouts 1 | . . . . . . . 1 . . . . . . . . . . . . . . . . . . Manual 54 | . 12 . 15 . 1 . 8 2 . . . . . . 3 . 1 . 3 9 . . . . . Terminals 88 | . 15 . 22 . . . 10 10 . . . 1 1 . 3 . . . 6 11 . . . 9 . Fabricators . | . . . . . . . . . . . . . . . . . . . . . . . . . . Repair Stations . | . . . . . . . . . . . . . . . . . . . . . . . . . . Recycling Units 1 | . . . . . . . 1 . . . . . . . . . . . . . . . . . . Scanalyzers 12 | . . . 5 . . . 2 . . . . . . . 5 . . . . . . . . . . Garrison Access 2 | . . . . . . . . . . . . . . . . . . . . . . . . 2 . Terminal Hacks 64 | . 4 . 6 . 1 . 3 7 . . 20 1 1 . . . . . 3 5 . 6 . 7 . Record 5 | . . . . . . . . 1 . . . 1 . . . . . . . . . . . 3 . Part Schematic 13 | . . . . . . . . . . . 13 . . . . . . . . . . . . . . Robot Schematic 7 | . . . . . . . . . . . 7 . . . . . . . . . . . . . . Robot Analysis 2 | . . . 1 . . . . 1 . . . . . . . . . . . . . . . . . Prototype ID Bank 11 | . . . 1 . . . 1 . . . . . . . . . . . 1 1 . 6 . 1 . Open DSF 2 | . . . . . . . . 1 . . . . 1 . . . . . . . . . . . . Level Access Points 1 | . . . . . . . . . . . . . . . . . . . . . . . . 1 . Branch Access Points 2 | . . . . . . . . . . . . . . . . . . . . 1 . . . 1 . Alert Level 1 | . . . 1 . . . . . . . . . . . . . . . . . . . . . . Unreport Threat 8 | . 1 . 1 . . . 1 1 . . . . . . . . . . 2 2 . . . . . Locate Traps 9 | . 3 . 1 . . . 1 2 . . . . . . . . . . . 1 . . . 1 . Disarm Traps 1 | . . . . . . . . 1 . . . . . . . . . . . . . . . . . Zone Layout 1 | . . . 1 . . . . . . . . . . . . . . . . . . . . . . Proto ID Catalog 1 | . . . . . 1 . . . . . . . . . . . . . . . . . . . . Fabricator Hacks . | . . . . . . . . . . . . . . . . . . . . . . . . . . Repair Station Hacks . | . . . . . . . . . . . . . . . . . . . . . . . . . . Recycling Unit Hacks 1 | . . . . . . . 1 . . . . . . . . . . . . . . . . . . Retrieve Components 1 | . . . . . . . 1 . . . . . . . . . . . . . . . . . . Scanalyzer 10 | . . . 4 . . . 1 . . . . . . . 5 . . . . . . . . . . Retrieve Study 10 | . . . 4 . . . 1 . . . . . . . 5 . . . . . . . . . . Garrison Access Hacks . | . . . . . . . . . . . . . . . . . . . . . . . . . . Unauthorized Hacks 16 | . 6 . 6 . . . 2 1 . . . . . . . . . . . 1 . . . . . Terminals 16 | . 6 . 6 . . . 2 1 . . . . . . . . . . . 1 . . . . . Botnet 5 | . 1 . 1 . . . 1 1 . . . . . . . . . . . 1 . . . . . Skim 11 | . 5 . 5 . . . 1 . . . . . . . . . . . . . . . . . . Fabricators . | . . . . . . . . . . . . . . . . . . . . . . . . . . Repair Stations . | . . . . . . . . . . . . . . . . . . . . . . . . . . Recycling Units . | . . . . . . . . . . . . . . . . . . . . . . . . . . Scanalyzers . | . . . . . . . . . . . . . . . . . . . . . . . . . . Garrison Access . | . . . . . . . . . . . . . . . . . . . . . . . . . . Data Cores Recovered 1 | . . . . . . . . . . . . . . . . 1 . . . . . . . . . Used . | . . . . . . . . . . . . . . . . . . . . . . . . . . Hacking Detections 31 | . 4 . 8 . . . 6 3 . . . 1 . . 2 . . . 3 1 . . . 3 . Full Trace Events 2 | . . . . . . . . 1 . . . . . . 1 . . . . . . . . . . Feedback Events . | . . . . . . . . . . . . . . . . . . . . . . . . . . Feedback Blocked . | . . . . . . . . . . . . . . . . . . . . . . . . . . Robot Schematics Acquired 7 | . . . . . . . . . . . 7 . . . . . . . . . . . . . . Robots Built . | . . . . . . . . . . . . . . . . . . . . . . . . . . Authchips . | . . . . . . . . . . . . . . . . . . . . . . . . . . Time . | . . . . . . . . . . . . . . . . . . . . . . . . . . Total Robot Build Rating . | . . . . . . . . . . . . . . . . . . . . . . . . . . Part Schematics Acquired 13 | . . . . . . . . . . . 13 . . . . . . . . . . . . . . Parts Built . | . . . . . . . . . . . . . . . . . . . . . . . . . . Authchips . | . . . . . . . . . . . . . . . . . . . . . . . . . . Time . | . . . . . . . . . . . . . . . . . . . . . . . . . . Total Part Build Rating . | . . . . . . . . . . . . . . . . . . . . . . . . . . Part Studies Acquired 10 | . . . 4 . . . 1 . . . . . . . 5 . . . . . . . . . . Parts Repaired . | . . . . . . . . . . . . . . . . . . . . . . . . . . Time . | . . . . . . . . . . . . . . . . . . . . . . . . . . Parts Recycled . | . . . . . . . . . . . . . . . . . . . . . . . . . . Recycled Matter . | . . . . . . . . . . . . . . . . . . . . . . . . . . Retrieved Matter . | . . . . . . . . . . . . . . . . . . . . . . . . . . Retrieved Components 2 | . . . . . . . 2 . . . . . . . . . . . . . . . . . . Parts Scanalyzed . | . . . . . . . . . . . . . . . . . . . . . . . . . . Part Schematics Acquired . | . . . . . . . . . . . . . . . . . . . . . . . . . . Parts Damaged . | . . . . . . . . . . . . . . . . . . . . . . . . . . Bothacking | -11 -10 -10 -9 -9 -9 -8 -8 -7 -7 -7 -7 -6 -6 -6 -5 -5 -5 -5 -5 -4 -4 -4 -3 -3 -3 ------------ Run | Yrd Mat Min Mat Min Exi Min Mat Fac Low Low Dat Pro Fac DSF Fac Ext Cet Arc Hub Fac Upp War Pro Res Tes Used RIF Installer . | . . . . . . . . . . . . . . . . . . . . . . . . . . Robots Hacked . | . . . . . . . . . . . . . . . . . . . . . . . . . . Non-combat . | . . . . . . . . . . . . . . . . . . . . . . . . . . Combat . | . . . . . . . . . . . . . . . . . . . . . . . . . . Robot Hacks Applied . | . . . . . . . . . . . . . . . . . . . . . . . . . . Relay Couplers Released 1 | . . . . . . . 1 . . . . . . . . . . . . . . . . . . Machine Destruction 1 | . . . . . . . 1 . . . . . . . . . . . . . . . . . . Fabnet Peak Effective % . | . . . . . . . . . . . . . . . . . . . . . . . . . . Robots Rewired 31 | . . . . . . . . . . 1 . . . . . 25 . . . . . 5 . . . Allies Hacked . | . . . . . . . . . . . . . . . . . . . . . . . . . . Hacks Repelled . | . . . . . . . . . . . . . . . . . . . . . . . . . . Allies | -11 -10 -10 -9 -9 -9 -8 -8 -7 -7 -7 -7 -6 -6 -6 -5 -5 -5 -5 -5 -4 -4 -4 -3 -3 -3 -------- Run | Yrd Mat Min Mat Min Exi Min Mat Fac Low Low Dat Pro Fac DSF Fac Ext Cet Arc Hub Fac Upp War Pro Res Tes Total Allies 44 | . . 1 . 2 . . 1 5 . 5 . . . . . 25 . . . . . 5 . . . Largest Group 21 | . . 1 . 2 . . 1 5 1 4 2 2 . . . 21 21 19 . . . 5 . . . Highest-Rated Group 585 | . . 16 . 47 . . 57 60 12 84 53 53 . . . 585 585 499 . . . 256 . . . Highest-Rated Ally 57 | . . 16 . 31 . . 57 57 12 32 32 32 . . . 39 39 39 . . . 56 . . . Total Orders 16 | . . . . . 2 . . 5 . . . . . . . 6 2 . . . . 1 . . . STAY 8 | . . . . . . . . 3 . . . . . . . 3 1 . . . . 1 . . . FOLLOW 6 | . . . . . . . . 2 . . . . . . . 3 1 . . . . . . . . EXPLORE 1 | . . . . . 1 . . . . . . . . . . . . . . . . . . . . RETURN 1 | . . . . . 1 . . . . . . . . . . . . . . . . . . . . Ally Attacks 204 | . . 1 . 8 . . 10 25 1 28 . 8 . . . 60 33 13 . . . 17 . . . Total Damage 3825 | . . 16 . 104 . . 309 276 13 624 . 51 . . . 1063 585 334 . . . 450 . . . Kills 34 | . . 1 . 1 . . 1 3 . 2 . 1 . . . 11 8 2 . . . 4 . . . Allies Corrupted 3 | . . 1 . . . . . . . . . . . . . . . . . . . 2 . . . Allies Melted . | . . . . . . . . . . . . . . . . . . . . . . . . . . X0-1V1 Amusement Gains 478 | . 18 20 25 20 . . 94 . 5 . . 5 . 10 . . . 70 50 10 . 60 . 20 71 Good Acts 85 | . . 4 6 4 . 8 18 5 5 1 . 4 . 2 . 7 3 . 2 9 . 3 3 . 1 Bad Acts 61 | . 1 6 10 3 . 1 2 7 1 3 . 4 1 3 2 1 . . 2 1 2 3 5 3 . Intel | -11 -10 -10 -9 -9 -9 -8 -8 -7 -7 -7 -7 -6 -6 -6 -5 -5 -5 -5 -5 -4 -4 -4 -3 -3 -3 ------- Run | Yrd Mat Min Mat Min Exi Min Mat Fac Low Low Dat Pro Fac DSF Fac Ext Cet Arc Hub Fac Upp War Pro Res Tes Active Infowar (turns) 300 | 54 246 . . . . . . . . . . . . . . . . . . . . . . . . Seismic 300 | 54 246 . . . . . . . . . . . . . . . . . . . . . . . . Robot Analysis Total 2 | . . . 1 . . . . 1 . . . . . . . . . . . . . . . . . Derelict Logs Recovered 6 | . . 1 . . . . . . . 3 . 2 . . . . . . . . . . . . . Drone Launches 1 | . . . . . 1 . . . . . . . . . . . . . . . . . . . . Drone Recoveries 1 | . . . . . 1 . . . . . . . . . . . . . . . . . . . . Exploration | -11 -10 -10 -9 -9 -9 -8 -8 -7 -7 -7 -7 -6 -6 -6 -5 -5 -5 -5 -5 -4 -4 -4 -3 -3 -3 ------------- Run | Yrd Mat Min Mat Min Exi Min Mat Fac Low Low Dat Pro Fac DSF Fac Ext Cet Arc Hub Fac Upp War Pro Res Tes Turns Passed 19611 | 124 1900 1130 1418 513 256 658 1394 2015 724 645 177 1414 30 380 569 1534 403 90 505 872 99 1163 614 665 319 Spaces Moved 9931 | 74 944 569 643 245 223 508 861 1128 368 374 113 764 14 105 189 688 161 38 213 367 61 519 322 332 108 Core 13 | 13 . . . . . . . . . . . . . . . . . . . . . . . . . Treads 7484 | 61 944 569 572 2 . 1 6 1020 368 374 113 764 14 105 189 290 132 38 213 367 61 519 322 332 108 Legs 427 | . . . . . . . . . . . . . . . . 398 29 . . . . . . . . Wheels 2007 | . . . 71 243 223 507 855 108 . . . . . . . . . . . . . . . . . Hover . | . . . . . . . . . . . . . . . . . . . . . . . . . . Flight . | . . . . . . . . . . . . . . . . . . . . . . . . . . Fastest Speed 50 | 50 160 160 105 105 105 105 105 120 155 155 155 155 212 212 192 120 120 160 160 160 160 160 160 160 160 Average Speed 150 | 140 160 160 153 105 105 105 119 151 155 155 155 175 212 212 204 144 153 160 160 160 160 160 160 160 160 Slowest Speed 240 | 160 160 160 160 160 105 152 152 155 155 155 155 212 212 212 212 195 240 160 160 160 160 160 160 160 160 Overloaded Moves . | . . . . . . . . . . . . . . . . . . . . . . . . . . Propulsion Burnouts . | . . . . . . . . . . . . . . . . . . . . . . . . . . Robots Hopped . | . . . . . . . . . . . . . . . . . . . . . . . . . . Potential Cave-ins 6 | . . . . 3 . . . . . . . . . . 3 . . . . . . . . . . Cave-ins Triggered 1 | . . . . 1 . . . . . . . . . . . . . . . . . . . . . Exploration Rate (%) 54 | 5 94 98 73 40 91 92 67 29 68 60 75 94 3 72 6 85 60 73 28 15 15 64 56 21 23 Regions Visited 25 Branch Regions 16 Pre-discovered Areas 3 | . 1 . 1 . . . . . . 1 . . . . . . . . . . . . . . . Known Exits Taken 16 | . 1 1 1 1 1 1 1 . 1 1 . 1 1 . 1 . . . 1 1 . . 1 1 . Unknown Exits Taken 8 | 1 . . . . . . . 1 . . 1 . . . . 1 1 1 . . 1 1 . . . Scrap Searched 17 | . . 1 . 1 . 2 . . 2 2 . 5 . . . . . . . . . . 4 . . Spaces Dug 55 | . . . . . . . 2 4 . . . 1 . . 10 . . . 6 10 . 1 . 14 7 Terrain Destroyed 542 | . 14 7 19 89 . 8 41 73 29 3 . 3 . 1 20 13 2 . 20 118 1 11 16 24 30 Melee . | . . . . . . . . . . . . . . . . . . . . . . . . . . Projectile 177 | . . . . . . 8 9 8 2 3 . 3 . 1 20 13 2 . 20 20 1 4 16 24 23 AOE 365 | . 14 7 19 89 . . 32 65 27 . . . . . . . . . . 98 . 7 . . 7 Terrain Rammed . | . . . . . . . . . . . . . . . . . . . . . . . . . . Walls Destroyed . | . . . . . . . . . . . . . . . . . . . . . . . . . . Machines Disabled . | . . . . . . . . . . . . . . . . . . . . . . . . . . Actions | -11 -10 -10 -9 -9 -9 -8 -8 -7 -7 -7 -7 -6 -6 -6 -5 -5 -5 -5 -5 -4 -4 -4 -3 -3 -3 --------- Run | Yrd Mat Min Mat Min Exi Min Mat Fac Low Low Dat Pro Fac DSF Fac Ext Cet Arc Hub Fac Upp War Pro Res Tes Total 13634 | 83 1233 720 921 465 245 599 1139 1393 496 419 115 816 15 242 328 1180 313 67 339 622 62 810 388 422 202 Wait 2121 | . 204 88 139 180 17 40 120 187 92 27 3 22 . 111 80 238 105 30 65 174 . 143 9 28 19 Move 9905 | 73 943 568 642 243 222 507 860 1127 367 373 112 763 13 104 188 687 160 37 212 366 60 518 321 331 108 Hop . | . . . . . . . . . . . . . . . . . . . . . . . . . . Pick Up 38 | . 1 . 1 . 1 1 4 1 1 . . 4 . . . 7 3 . . 2 . 7 2 . 3 Fast Attach 110 | 6 9 . 19 . 2 1 13 4 1 1 . 1 . 2 5 10 7 . 12 3 . 1 1 4 8 Attach 11 | . . . . . . . . 1 . . . 1 . . . 2 1 . . . . 4 1 . 1 Detach 11 | . . . . . . . . 1 . . . . . . . 4 2 . 2 . . . 1 . 1 Swap 82 | . 6 1 5 6 . 6 21 15 2 . . . 1 . 2 3 2 . 3 3 2 3 . . 1 Drop 122 | . 9 1 17 . 3 2 15 6 1 1 . 3 1 . 4 16 11 . 6 6 . 9 2 3 6 Fire 722 | 4 51 34 73 25 . 25 86 24 15 10 . 13 . 11 39 33 5 . 28 50 . 57 38 46 55 Melee . | . . . . . . . . . . . . . . . . . . . . . . . . . . Ram . | . . . . . . . . . . . . . . . . . . . . . . . . . . Kick . | . . . . . . . . . . . . . . . . . . . . . . . . . . Crush 10 | . . 2 1 . . . 1 2 . . . . . . . 1 . . 1 . . . . 2 . Escape Stasis 8 | . . . . 1 . . . . . . . . . . . 7 . . . . . . . . . Rewire 150 | . . . . . . . . . . 1 . 1 . . . 129 . . . . . 19 . . . Trap . | . . . . . . . . . . . . . . . . . . . . . . . . . . Miscellaneous 344 | . 10 26 24 10 . 17 19 25 17 6 . 8 . 14 10 43 17 . 10 18 . 49 13 8 . Route ------- -11/Scrapyard -10/Materials (discovered 5 exits: *Mat x3 / *Min / *Sub) -10/Mines (discovered 3 exits: *Mat x2 / *Sub) -9/Materials (discovered 4 exits: *Mat x3 / *Min) -9/Mines (discovered 3 exits: *Mat x2 / *Exi) -9/Exiles (discovered 2 exits: *Min x2) -8/Mines (discovered 2 exits: *Mat x2) -8/Materials (discovered 5 exits: *Fac x3 / *Sto x2) -7/Factory (discovered 3 exits: *Fac x2 / [*Low]) -7/Lower Caves -7/Lower Caves -7/Data Miner -6/Proximity Caves -6/Factory (discovered 2 exits: [*Low] / DSF) -6/DSF -5/Factory (discovered 2 exits: *Ext x2) -5/Extension (discovered 3 exits: *Fac x2 / *Cet) -5/Cetus (discovered 2 exits: *Fac / [*Arc]) -5/Archives -5/Hub_04(d) -4/Factory (discovered 3 exits: *Res / *Upp x2) -4/Upper Caves -4/Warlord -3/Proximity Caves -3/Research (discovered 6 exits: *Res x3 / Arm / *Tes x2) -3/Testing History --------- Turn | Location | Event 4 | -11/Scrapyard | Discovered new exit (range 16) 13 | -11/Scrapyard | Upgraded with Propulsion slot (x1) 13 | -11/Scrapyard | Upgraded with Weapon slot (x1) 125 | -11/Scrapyard | Entered Materials 272 | -10/Materials | Discovered new exit (range 15) 330 | -10/Materials | Build established: Mutant 399 | -10/Materials | Discovered new exit (range 15) 773 | -10/Materials | Discovered new exit (range 8) 1254 | -10/Materials | Discovered new exit (range 12) 1309 | -10/Materials | Learned location of Storage (-8) 1399 | -10/Materials | Learned location of 1 exit from Recycling 1427 | -10/Materials | Learned Storage stockpile data 1447 | -10/Materials | Learned location of 1 exit from Recycling 1509 | -10/Materials | Learned 2 Storage zone layouts 1551 | -10/Materials | Identified exit to Materials 1551 | -10/Materials | Identified exit to Mines 1551 | -10/Materials | Identified exit to Subcaves 1880 | -10/Materials | Prayed at D.C.S.S. Altar Unit 1880 | -10/Materials | Reached level 2 1880 | -10/Materials | Reached level 3 1880 | -10/Materials | Upgraded with Utility slot (x1) 1947 | -10/Materials | X0-1V1 sent you into danger 1955 | -10/Materials | Reached level 4 2025 | -10/Materials | Entered Mines 2136 | -10/Mines | Discovered exit to Subcaves (range 6) 2397 | -10/Mines | Found a hidden stash of uninstalled traps 2418 | -10/Mines | Discovered exit to Materials (range 4) 2557 | -10/Mines | X0-1V1 sent you into danger 2574 | -10/Mines | X0-1V1 turns hostiles against one another 2582 | -10/Mines | X0-1V1 added 0b10 threat records associated with you (minor) 2732 | -10/Mines | Learned Materials machine intel 2754 | -10/Mines | Discovered exit to Materials (range 6) 2792 | -10/Mines | Reached level 5 3033 | -10/Mines | Joined a pair of Derelicts in attacking an 0b10 outpost 3155 | -10/Mines | Entered Materials 3156 | -9/Materials | Identified exit to Mines 3157 | -9/Materials | Loaded intel: 55 machine locations 3157 | -9/Materials | Reached level 6 3160 | -9/Materials | Upgraded with Utility slot (x1) 3294 | -9/Materials | X0-1V1 upgraded hostiles (x1) 3370 | -9/Materials | X0-1V1 sent someone to keep an eye on you 3547 | -9/Materials | Discovered new exit (range 7) 3615 | -9/Materials | Reached level 7 4111 | -9/Materials | Upgraded with Weapon slot (x1) 4149 | -9/Materials | Reached level 8 4149 | -9/Materials | Discovered new exit (range 14) 4391 | -9/Materials | Identified exit to Materials 4428 | -9/Materials | Learned location of 1 exit from Storage 4450 | -9/Materials | Upgraded with Propulsion slot (x1) 4475 | -9/Materials | Learned location of 2 exits from Materials 4503 | -9/Materials | X0-1V1 sent you to a vault 4526 | -9/Materials | Learned Storage stockpile data 4561 | -9/Materials | Learned 4 Materials zone layouts 4573 | -9/Materials | X0-1V1 vaporized surrounding terrain (radius 18) 4573 | -9/Materials | Entered Mines 4574 | -9/Mines | Assembled infested the area 4631 | -9/Mines | Build established: Hacker-Gunner 4654 | -9/Mines | X0-1V1 sent hostile G-34 Mercenary (x4) 4704 | -9/Mines | X0-1V1 activates XOMVISION 4810 | -9/Mines | Identified exit to Exiles 4810 | -9/Mines | X0-1V1 revealed exit location to -9/Exiles 4839 | -9/Mines | Destroyed 9 combat bots 5031 | -9/Mines | Crushed by falling debris 5082 | -9/Mines | Deemed a non-threat by the Exiles lab entrance 5086 | -9/Mines | Entered Exiles 5087 | -9/Exiles | Identified exit to Mines 5088 | -9/Exiles | Reached level 9 5112 | -9/Exiles | Met 8R-AWN 5131 | -9/Exiles | Met EX-HEX 5159 | -9/Exiles | Met EX-BIN 5170 | -9/Exiles | Aligned with FarCom system 5172 | -9/Exiles | Given EX-Vault access code 5196 | -9/Exiles | Opened EX-Vault 5203 | -9/Exiles | Found Gui. Plasma Cannon 5206 | -9/Exiles | Found Supersonic Drone Bay 5218 | -9/Exiles | Discovered exit to Mines (range 69) 5248 | -9/Exiles | Warned to stay clear of 0b10 Research branches 5280 | -9/Exiles | Met EX-DEC 5342 | -9/Exiles | Left Exiles lab with Gui. Plasma Cannon 5342 | -9/Exiles | Entered Mines 5392 | -8/Mines | X0-1V1 revealed exit location to -8/Materials 5635 | -8/Mines | X0-1V1 sent hostile B-36 Bruiser (x2) 5667 | -8/Mines | X0-1V1 activates XOMVISION 5852 | -8/Mines | Reached level 10 6000 | -8/Mines | Entered Materials 6001 | -8/Materials | Identified exit to Factory 6002 | -8/Materials | Reached level 11 6011 | -8/Materials | Discovered new exit (range 20) 6027 | -8/Materials | X0-1V1 foreshadows a heat wave 6084 | -8/Materials | X0-1V1 sent you to a vault 6085 | -8/Materials | Upgraded with Utility slot (x1) 6131 | -8/Materials | X0-1V1 released a cloud of subatomizers 6196 | -8/Materials | Ambient heat levels rising (+10) 6222 | -8/Materials | Reached level 12 6243 | -8/Materials | Destroyed 13 combat bots 6273 | -8/Materials | Garrison activated, responded to threat 6333 | -8/Materials | Ambient heat levels rising (+10) 6373 | -8/Materials | Build established: Hacker-Tank 6396 | -8/Materials | Upgraded with Utility slot (x1) 6411 | -8/Materials | Identified exit to Storage 6411 | -8/Materials | X0-1V1 revealed exit location to -8/Storage 6419 | -8/Materials | X0-1V1 activates XOMVISION 6532 | -8/Materials | Ambient heat levels falling (-10) 6709 | -8/Materials | Build established: Hacker-Gunner 6732 | -8/Materials | Central database locked down 6763 | -8/Materials | Ambient heat levels falling (-10) 6770 | -8/Materials | X0-1V1 activates XOMVISION 6853 | -8/Materials | Met 7R-MNS 6908 | -8/Materials | Sterilization system engaged 6908 | -8/Materials | Non-combat units ordered to evacuate 7008 | -8/Materials | Combat units ordered to evacuate 7023 | -8/Materials | Attacked by 7R-MNS 7099 | -8/Materials | X0-1V1 activates XOMVISION 7208 | -8/Materials | Ambient heat levels rising (+10) 7257 | -8/Materials | X0-1V1 sent allied Chaos Knight (x1) 7263 | -8/Materials | Core integrity fell below 50% 7280 | -8/Materials | Core integrity fell below 20% 7289 | -8/Materials | 7R-MNS lamented failing the tripod run 7289 | -8/Materials | Allies destroyed 7R-MNS 7300 | -8/Materials | Found Prototype Device 7300 | -8/Materials | Identified Multitargeting Array 7310 | -8/Materials | Found Prototype Device 7310 | -8/Materials | Identified Exp. Focal Shield 7358 | -8/Materials | Ambient heat levels rising (+10) 7394 | -8/Materials | Entered Factory 7394 | -7/Factory | Accompanied by 1 ally 7395 | -7/Factory | Core integrity fell below 50% 7395 | -7/Factory | Core integrity fell below 20% 7396 | -7/Factory | Reached level 13 7499 | -7/Factory | Upgraded with Weapon slot (x1) 7804 | -7/Factory | Discovered new exit (range 7) 7807 | -7/Factory | Build established: Scavenger-Gunner 8025 | -7/Factory | X0-1V1 activates XOMVISION 8084 | -7/Factory | Discovered new exit (range 6) 8191 | -7/Factory | Reached level 14 8221 | -7/Factory | Upgraded with Weapon slot (x1) 8348 | -7/Factory | Identified exit to Factory 8348 | -7/Factory | X0-1V1 revealed exit location to -6/Factory 8615 | -7/Factory | X0-1V1 sent you to a vault 8749 | -7/Factory | Gui. Plasma Cannon suddenly broke down 8842 | -7/Factory | X0-1V1 rewrote Virus 4a IFF filter 9107 | -7/Factory | X0-1V1 enhanced Transport squad support 9118 | -7/Factory | Cargo convoy interrupted 9308 | -7/Factory | X0-1V1 redirected Transport squads to designated parking area 9409 | -7/Factory | Entered Lower Caves 9409 | -7/Lower Caves | Accompanied by 1 ally 9409 | -7/Lower Caves | Reached level 15 9746 | -7/Lower Caves | Identified exit to Lower Caves 9746 | -7/Lower Caves | X0-1V1 revealed exit location to -7/Lower Caves 10043 | -7/Lower Caves | X0-1V1 activates XOMVISION 10082 | -7/Lower Caves | Spotted B-75 Beast 10086 | -7/Lower Caves | X0-1V1 upgraded hostiles (x1) 10089 | -7/Lower Caves | Spotted B-86 Titan 10092 | -7/Lower Caves | Destroyed B-86 Titan 10133 | -7/Lower Caves | Entered another Lower Caves area 10134 | -7/Lower Caves | Encountered a Warlord checkpoint 10143 | -7/Lower Caves | Learned Factory stockpile data 10151 | -7/Lower Caves | Spotted B-75 Beast 10151 | -7/Lower Caves | X0-1V1 sent you into danger 10156 | -7/Lower Caves | X0-1V1 sent allied H-55 Commando (x4) 10157 | -7/Lower Caves | Allies destroyed B-75 Beast 10298 | -7/Lower Caves | Attracted the attention of an 0b10 outpost 10329 | -7/Lower Caves | Reached level 16 10369 | -7/Lower Caves | Lost 3 allies 10378 | -7/Lower Caves | Destroyed 7 combat bots 10440 | -7/Lower Caves | Identified exit to Data Miner 10456 | -7/Lower Caves | Learned location of Zion (-6) 10778 | -7/Lower Caves | Entered Data Miner 10778 | -7/Data Miner | Accompanied by 2 allies 10778 | -7/Data Miner | Discovered new exit (range 6) 10808 | -7/Data Miner | Met Data Miner 10884 | -7/Data Miner | Received God Mode back door access code from Data Miner 10955 | -7/Data Miner | Entered Proximity Caves 10955 | -6/Proximity Caves | Accompanied by 2 allies 10957 | -6/Proximity Caves | Reached level 17 10998 | -6/Proximity Caves | X0-1V1 activates XOMVISION 11104 | -6/Proximity Caves | X0-1V1 rewrote Guardian 4a IFF filter 11229 | -6/Proximity Caves | X0-1V1 revealed exit location to -6/Factory 11290 | -6/Proximity Caves | Upgraded with Utility slot (x1) 11356 | -6/Proximity Caves | Upgraded with Utility slot (x1) 11563 | -6/Proximity Caves | Attracted the attention of an 0b10 checkpoint 11763 | -6/Proximity Caves | Spotted B-75 Beast 11774 | -6/Proximity Caves | Destroyed B-75 Beast 11993 | -6/Proximity Caves | System corruption reached 10% 12041 | -6/Proximity Caves | X0-1V1 activates XOMVISION 12369 | -6/Proximity Caves | Entered Factory 12371 | -6/Factory | Reached level 18 12376 | -6/Factory | X0-1V1 vaporized surrounding terrain (radius 22) 12376 | -6/Factory | Discovered new exit (range 15) 12399 | -6/Factory | Identified exit to DSF 12399 | -6/Factory | Entered DSF 12468 | -6/DSF | Additional patrols routed to DSF 12572 | -6/DSF | Upgraded with Power slot (x1) 12631 | -6/DSF | Discovered new exit (range 15) 12779 | -6/DSF | Entered Factory 12780 | -5/Factory | Identified exit to Extension 12781 | -5/Factory | Reached level 19 12970 | -5/Factory | Reached level 20 12976 | -5/Factory | X0-1V1 sent hostile G-50 Soldier (x5) 13012 | -5/Factory | Destroyed 7 combat bots 13090 | -5/Factory | Upgraded with Power slot (x1) 13090 | -5/Factory | Upgraded with Utility slot (x1) 13131 | -5/Factory | X0-1V1 added 0b10 threat records associated with you (major) 13348 | -5/Factory | Entered Extension 13350 | -5/Extension | Reached level 21 13354 | -5/Extension | X0-1V1 dreamt of freedom 13377 | -5/Extension | Rescued a captive Derelict 13380 | -5/Extension | Rescued a captive Derelict 13383 | -5/Extension | Rescued a captive Derelict 13384 | -5/Extension | Rescued a captive Derelict 13389 | -5/Extension | Rescued a captive Derelict 13391 | -5/Extension | Upgraded with Propulsion slot (x1) 13391 | -5/Extension | Upgraded with Utility slot (x1) 14151 | -5/Extension | X0-1V1 rewrote OZ-53H(h) IFF filter 14196 | -5/Extension | Build established: Commander-Gunner 14381 | -5/Extension | Spotted B-75 Beast 14382 | -5/Extension | Allies destroyed B-75 Beast 14398 | -5/Extension | Spotted B-75 Beast 14399 | -5/Extension | Discovered new exit (range 14) 14401 | -5/Extension | Destroyed B-75 Beast 14422 | -5/Extension | Extracted ID and sensor layout for unrecognized location from A7's data core 14512 | -5/Extension | Reached level 22 14793 | -5/Extension | Discovered new exit (range 10) 14794 | -5/Extension | Discovered new exit (range 6) 14882 | -5/Extension | Entered Cetus 14882 | -5/Cetus | Accompanied by 21 allies 14906 | -5/Cetus | Spotted Cetus Guard 14908 | -5/Cetus | Spotted Cetus Guard 14908 | -5/Cetus | Spotted Cetus Guard 14909 | -5/Cetus | Allies destroyed Cetus Guard 14912 | -5/Cetus | Destroyed Cetus Guard 14914 | -5/Cetus | Allies destroyed Cetus Guard 15039 | -5/Cetus | Discovered new exit (range 15) 15074 | -5/Cetus | Identified exit to Factory 15074 | -5/Cetus | X0-1V1 revealed exit location to -4/Factory 15106 | -5/Cetus | Reached level 23 15107 | -5/Cetus | Spotted Cetus Guard 15108 | -5/Cetus | Spotted Cetus Guard 15109 | -5/Cetus | Spotted Cetus Guard 15116 | -5/Cetus | Destroyed Cetus Guard 15116 | -5/Cetus | Allies destroyed Cetus Guard 15116 | -5/Cetus | Allies destroyed Cetus Guard 15126 | -5/Cetus | Upgraded with Utility slot (x1) 15135 | -5/Cetus | Met Revision 17 15283 | -5/Cetus | X0-1V1 activates XOMVISION 15285 | -5/Cetus | Entered Archives 15285 | -5/Archives | Accompanied by 19 allies 15303 | -5/Archives | Met Zhirov 15309 | -5/Archives | Reinforcements dispatched to Archives 15322 | -5/Archives | Discovered new exit (range 16) 15354 | -5/Archives | Reinforcements dispatched to Archives 15374 | -5/Archives | Zhirov detonated Archives 15375 | -5/Archives | Entered Hub_04(d) 15405 | -5/Hub_04(d) | Lost 19 allies 15582 | -5/Hub_04(d) | Network Hub disabled 15602 | -5/Hub_04(d) | Spotted Lightning 15662 | -5/Hub_04(d) | Build established: Scavenger-Tank 15664 | -5/Hub_04(d) | Spotted Lightning 15666 | -5/Hub_04(d) | Spotted Lightning 15667 | -5/Hub_04(d) | Spotted Lightning 15677 | -5/Hub_04(d) | Core integrity fell below 50% 15679 | -5/Hub_04(d) | Destroyed Lightning 15693 | -5/Hub_04(d) | Core integrity fell below 20% 15694 | -5/Hub_04(d) | Destroyed Lightning 15702 | -5/Hub_04(d) | System corruption reached 10% 15718 | -5/Hub_04(d) | Found Prototype Device 15718 | -5/Hub_04(d) | Identified Exp. EM Shield 15734 | -5/Hub_04(d) | Core integrity restored by X0-1V1 (+198) 15750 | -5/Hub_04(d) | Destroyed Lightning 15755 | -5/Hub_04(d) | Found Prototype Device 15755 | -5/Hub_04(d) | Identified Exp. Phase Shifter 15764 | -5/Hub_04(d) | Found Exp. EM Shield 15809 | -5/Hub_04(d) | Found Prototype Energy Cannon 15809 | -5/Hub_04(d) | Identified EMDS 15867 | -5/Hub_04(d) | Discovered exit to Factory (range 9) 15880 | -5/Hub_04(d) | Entered Factory 15881 | -4/Factory | Core integrity fell below 50% 15882 | -4/Factory | Reached level 24 15911 | -4/Factory | Upgraded with Power slot (x1) 15935 | -4/Factory | Identified exit to Upper Caves 16180 | -4/Factory | Core integrity restored by X0-1V1 (+286) 16415 | -4/Factory | Reached level 25 16477 | -4/Factory | Discovered new exit (range 8) 16588 | -4/Factory | Allied Derelicts emerged from ambush trap array 16692 | -4/Factory | System corruption reached 10% 16752 | -4/Factory | Entered Upper Caves 16762 | -4/Upper Caves | X0-1V1 vaporized surrounding terrain (radius 20) 16819 | -4/Upper Caves | A Derelict revealed a hidden shortcut to "reach the base" 16851 | -4/Upper Caves | Entered Warlord 16906 | -4/Warlord | System corruption cleaned by Quarantine Array 17429 | -4/Warlord | Met Warlord 17454 | -4/Warlord | Warlord's base attacked by MAIN.C 17630 | -4/Warlord | P-80 Master assimilated allied Assassin 7b 17668 | -4/Warlord | Lost 4 allies 17784 | -4/Warlord | Reached level 26 17804 | -4/Warlord | Warlord forces counterattacked 17805 | -4/Warlord | Lost 4 allies 17867 | -4/Warlord | Spotted Executioner 17928 | -4/Warlord | Lost 3 allies 17930 | -4/Warlord | Destroyed 10 combat bots 17956 | -4/Warlord | Discovered new exit (range 15) 17956 | -4/Warlord | Spotted Executioner 17961 | -4/Warlord | Spotted Executioner 17972 | -4/Warlord | Destroyed Executioner 17972 | -4/Warlord | Destroyed Executioner 18000 | -4/Warlord | Destroyed 7 combat bots 18008 | -4/Warlord | Lost 8 allies 18014 | -4/Warlord | Entered Proximity Caves 18016 | -3/Proximity Caves | Reached level 27 18286 | -3/Proximity Caves | Identified exit to Research 18286 | -3/Proximity Caves | X0-1V1 revealed exit location to -3/Research 18516 | -3/Proximity Caves | Destroyed 7 combat bots 18628 | -3/Proximity Caves | Entered Research 18630 | -3/Research | Reached level 28 18694 | -3/Research | Upgraded with Utility slot (x1) 18745 | -3/Research | Identified exit to Armory 18745 | -3/Research | Identified exit to Testing 18745 | -3/Research | Identified exit to Research 18828 | -3/Research | Revision forces began assault on 0b10 18924 | -3/Research | Met up with Revision 17++ 19293 | -3/Research | Entered Testing 19294 | -3/Testing | Reached level 29 19294 | -3/Testing | Maximum security lockdown engaged 19568 | -3/Testing | Scanned by Researcher 19582 | -3/Testing | Spotted Investigator 19598 | -3/Testing | Core integrity fell below 50% 19608 | -3/Testing | Core integrity fell below 20% 19612 | -3/Testing | Destroyed by G-73 Enforcer with Phase Gun Last Messages --------------- 19609_ Slug penetrates L-61 Swordsman. 19609_ Investigator stasis bubble strength at 46. 19610_ Neutrino Core+ broken. 19610_ Overheating: Short circuit. 19610_ Investigator stasis bubble strength at 32. 19611_ G-73 Enforcer destroyed. 19611_ H-77 Assassin destroyed. 19611_ Destroyed Plasma Rifle. 19611_ Destroyed Imp. Phase Shifter. 19611_ H-77 Assassin destroyed. 19611_ Penetrated by Slug. 19611_ Slug penetrates Earth. 19611_ Slug penetrates B-74 Champion. 19611_ Slug penetrates G-73 Enforcer. 19611_ Penetrated by Slug. 19611_ Investigator stasis bubble strength at 18. 19612_ X0-1V1 howls with laughter! Map ----- +----------------------------------------------------+ | | | | | | | | | | | | | | | | | | | | | | | ???#????????###??????????????????????????????????? | | ???? ?????? =??????????????????????????????????? | | ??? ?? ??????????????????????????????????? | | ???""" """" """" #????????????????????????????? | | ?? """ """" """" #????????????????????????????? | | ???""" """" """" ?????????????????????????????? | | ????? """" """" ???????????????????????????????? | | ??????? ?????????????????????????????????? | | ????????? ???????????????????????????????????? | | ??#+#???###+##?##########????????????????????????? | | ??# #???# ###="" """###??????????????????????? | | ??# #???# #=!!/g[ lgh=#??????????????????????? | | ??# ##### gbb%%%*%%=ggg%%l;??##??????????????????? | | ??# c%g*!%lgg%ghgbb# ##?????????????????? | | ??# bg%%=i bg%%%%!@! #?????????????????? | | ### gb#!h% g%[%=!i=; #?????????????? | | ####; [[*#==# ###?????????????? | | #### ## ##### #??????????????? | | ? #??# #?# ##?#????????????????????? | | #??##??# #???????????????????????? | | ######### #??????# #???????????????????????? | | ????????# ####??????###???????????????????????? | | ????????# #???????????????????????????????????? | | ????????# #???????????????????????????????????? | | ????????+ +???????????????????????????????????? | | ????????# #???????????????????????????????????? | | ????????# #???????????????????????????????????? | | ????????# #???????????????????????????????????? | | ????????? ????????????????????????????????????? | | ?????????????????????????????????????????????????? | | ?????????????????????????????????????????????????? | | ?????????????????????????????????????????????????? | | ?????????????????????????????????????????????????? | | ?????????????????????????????????????????????????? | | ?????????????????????????????????????????????????? | | ?????????????????????????????????????????????????? | | ?????????????????????????????????????????????????? | | ?????????????????????????????????????????????????? | | ?????????????????????????????????????????????????? | +----------------------------------------------------+ Best States ------------- Heat Dissipation 193 Energy Generation 86 Energy Capacity 2420 Matter Stores 1000 Matter Capacity 1000 Sight Range 22 Robot Scan Range 20 Terrain Scan Density 10 Additional Mass Support 9 Base Temperature (-) 400 Armor Coverage 300 Resistance: KI 20 Resistance: TH 68 Resistance: EM 75 Weapon Cycling 25 Phase Shifting 20 Evasion (%) 70 Targeting Accuracy 32 Recoil Reduction 4 Particle Charging 25 Salvage Targeting 4 Offensive Hacking 20 Item Schematics ----------------- Combat Drone Bay | -7/Data Miner | Free Lgt. Regenerative Plating | -7/Data Miner | Free Multireflex Exoskeleton | -7/Data Miner | Free Exp. Targeting Computer | -7/Data Miner | Free Force Rifle | -7/Data Miner | Free Linear Gravjet | -7/Data Miner | Free Adv. Recoil Stabilizer | -7/Data Miner | Free Mass Driver | -7/Data Miner | Free Imp. Trap Scanner | -7/Data Miner | Free Adv. Hacking Suite | -7/Data Miner | Free Imp. Shock Absorption System | -7/Data Miner | Free Imp. Heavy Treads | -7/Data Miner | Free Matter Neutralizer | -7/Data Miner | Free Robot Schematics ------------------ W-25 Informer | -7/Data Miner | Free E-15 Imp | -7/Data Miner | Free M-22 Extractor | -7/Data Miner | Free B-48 Gladiator | -7/Data Miner | Free G-50 Soldier | -7/Data Miner | Free R-10 Processor | -7/Data Miner | Free L-41 Fighter | -7/Data Miner | Free Fabricated ------------ Nothing Repaired ---------- Nothing Studied --------- Hvy. EM Pulse Gun | -9/Materials | Hacked Grenade Launcher | -9/Materials | Hacked Imp. Treads | -9/Materials | Hacked Rocket Launcher | -9/Materials | Hacked Pulse Rifle | -8/Materials | Hacked Neutrino Core | -5/Factory | Hacked Gatling Laser | -5/Factory | Hacked Adv. Treads | -5/Factory | Hacked Lrn. Missile Launcher | -5/Factory | Hacked Angular Momentum Engine | -5/Factory | Hacked Alien Tech Used ----------------- None Achievements -------------- Better Safe Than Exploded Challenges ------------ None RPGLIKE | -11 -10 -10 -9 -9 -9 -8 -8 -7 -7 -7 -7 -6 -6 -6 -5 -5 -5 -5 -5 -4 -4 -4 -3 -3 -3 --------- Run | Yrd Mat Min Mat Min Exi Min Mat Fac Low Low Dat Pro Fac DSF Fac Ext Cet Arc Hub Fac Upp War Pro Res Tes Levels Raised 28 | . 3 1 3 . 1 1 2 2 1 1 . 1 1 . 2 2 1 . . 2 . 1 1 1 1 XP Earned 46134 | 3000 4525 1919 4524 1023 211 1625 3623 3511 1004 815 220 1495 1170 967 2754 3094 777 218 644 2249 254 1721 1712 1904 1175 XP Spent 44910 | 1000 3965 3425 4840 . . 2800 3425 2500 . . . 3700 . 500 3100 3700 2900 . 115 1100 . . . 6400 1440 Upgrades 91 | 2 20 14 10 . . 4 6 2 . . . 2 . 1 2 2 1 . 1 1 . . . 17 6 Power Slot 3 | . . . . . . . . . . . . . . 1 1 . . . . 1 . . . . . Propulsion Slot 3 | 1 . . 1 . . . . . . . . . . . . 1 . . . . . . . . . Utility Slot 10 | . 1 . 1 . . . 2 . . . . 2 . . 1 1 1 . . . . . . 1 . Weapon Slot 4 | 1 . . 1 . . . . 2 . . . . . . . . . . . . . . . . . Core Integrity 26 | . 8 . . . . . 1 . . . . . . . . . . . 1 . . . . 16 . Heat Dissipation 13 | . 3 . 2 . . . 2 . . . . . . . . . . . . . . . . . 6 Energy Generation 1 | . 1 . . . . . . . . . . . . . . . . . . . . . . . . Energy Storage 2 | . 2 . . . . . . . . . . . . . . . . . . . . . . . . Inventory Capacity 2 | . 1 . . . . . 1 . . . . . . . . . . . . . . . . . . Sensor Range 10 | . . 10 . . . . . . . . . . . . . . . . . . . . . . . Ranged Accuracy 1 | . . . . . . 1 . . . . . . . . . . . . . . . . . . . Hack Attack % 4 | . . . 4 . . . . . . . . . . . . . . . . . . . . . . KI Resistance % 4 | . . 4 . . . . . . . . . . . . . . . . . . . . . . . TH Resistance % 4 | . 4 . . . . . . . . . . . . . . . . . . . . . . . . TH Damage % 4 | . . . 1 . . 3 . . . . . . . . . . . . . . . . . . . Protomatter Created 4164 | . 84 242 280 117 . 147 160 217 116 81 . 57 . 181 198 475 113 . 96 268 . 548 429 109 246 Integrity Restored 6780 | . 154 567 435 216 . 334 384 561 348 144 . 171 . 306 215 783 351 . 147 390 . 1030 130 114 . Core 4627 | . 137 466 292 216 . 334 146 561 348 144 . 171 . 222 127 265 53 . 147 390 . 423 99 86 . Parts 2153 | . 17 101 143 . . . 238 . . . . . . 84 88 518 298 . . . . 607 31 28 . Protomatter Decayed 5348 | . 26 5 130 151 . 35 569 30 . . . . . . 79 754 202 211 . 122 . 322 412 2300 . Game ------ Seed VoltaicFlightReplicator Manual? 0 Play Time 04:21:21 Cumulative 160.0 hours Start 2026.07.31 @ 23:44:59 End 2026.08.01 @ 23:37:38 Sessions 7 Manual Loads 0 Difficulty Rogue Special Mode Winter2019/RPGLIKE Game No. 115 Rogue 115 Adventurer 0 Explorer 0 Win Type - Total 3 Types 2/0/0/1/0/0/0/0/0/0 Lore% 52 Gallery% 60 Achievement% 55 Wizard Run 0 Options --------- Layout 2 ASCII 0 Keyboard 0 Movement Mouse Keybinds 0 Fullscreen 1 Font 32/SmallcapsGlow Map View 50x44 Zoom Use 0% Tactical HUD 1 Map Filters NONE Filters NONE Steam 1 RUN: 55fbd214-2d72-4df2-9a7c-870cd89fa68d